[Event "Early-Titled-Tuesday-Blitz-January-30-2024"]
[Site "Chess.com"]
[Date "2024.01.30"]
[Round "9"]
[White "ACollins05"]
[Black "GianmarcoVaR"]
[Result "1-0"]
[WhiteElo "2512"]
[BlackElo "2698"]
[TimeControl "180+1"]
[EndTime "9:48:32 PST"]
[Termination "ACollins05 won on time"]

1. d4 {[%clk 0:02:56.3]} 1... Nf6 {[%clk 0:02:46.8]} 2. c4 {[%clk 0:02:38.4]}
2... e6 {[%clk 0:02:45.9]} 3. Nf3 {[%clk 0:02:38.2]} 3... d5 {[%clk 0:02:44.6]}
4. g3 {[%clk 0:02:38.2]} 4... Bb4+ {[%clk 0:02:43.6]} 5. Nbd2 {[%clk 0:02:37.7]}
5... dxc4 {[%clk 0:02:43.4]} 6. Bg2 {[%clk 0:02:34.6]} 6... b5 {[%clk
0:02:43.9]} 7. Ne5 {[%clk 0:02:31.8]} 7... Nd5 {[%clk 0:02:41.3]} 8. a4 {[%clk
0:02:20]} 8... c6 {[%clk 0:02:37.2]} 9. O-O {[%clk 0:02:19.1]} 9... O-O {[%clk
0:02:22.7]} 10. Qc2 {[%clk 0:02:13.8]} 10... Bb7 {[%clk 0:01:59]} 11. Ne4 {[%clk
0:01:57.4]} 11... Nd7 {[%clk 0:01:42.7]} 12. Nf3 {[%clk 0:01:37.8]} 12... Rc8
{[%clk 0:01:05.9]} 13. Nfg5 {[%clk 0:01:37.5]} 13... g6 {[%clk 0:01:04.4]} 14.
h4 {[%clk 0:01:33.7]} 14... c5 {[%clk 0:00:53.4]} 15. Nd6 {[%clk 0:01:31.9]}
15... cxd4 {[%clk 0:00:50.2]} 16. Nxc8 {[%clk 0:01:26.7]} 16... Qxc8 {[%clk
0:00:49.4]} 17. axb5 {[%clk 0:01:24.7]} 17... Qc5 {[%clk 0:00:41.1]} 18. h5
{[%clk 0:01:16.9]} 18... Qxb5 {[%clk 0:00:39]} 19. hxg6 {[%clk 0:01:16.1]} 19...
hxg6 {[%clk 0:00:37.9]} 20. Nxe6 {[%clk 0:01:09.3]} 20... d3 {[%clk 0:00:38.3]}
21. exd3 {[%clk 0:00:58.9]} 21... cxd3 {[%clk 0:00:38.2]} 22. Nc7 {[%clk
0:00:44.4]} 22... Nxc7 {[%clk 0:00:17.7]} 23. Qxc7 {[%clk 0:00:45.3]} 23... Bxg2
{[%clk 0:00:17]} 24. Kxg2 {[%clk 0:00:46.1]} 24... d2 {[%clk 0:00:10.9]} 25.
Bxd2 {[%clk 0:00:46.3]} 25... Bxd2 {[%clk 0:00:11.3]} 26. Rfd1 {[%clk
0:00:46.9]} 26... Qd5+ {[%clk 0:00:11.6]} 27. Kg1 {[%clk 0:00:46.9]} 27... Ne5
{[%clk 0:00:11.8]} 28. Ra3 {[%clk 0:00:41.9]} 28... Re8 {[%clk 0:00:03.4]} 29.
Qc2 {[%clk 0:00:36]} 29... Nf3+ {[%clk 0:00:03.3]} 30. Rxf3 {[%clk 0:00:35.1]}
30... Qxf3 {[%clk 0:00:04.2]} 31. Qxd2 {[%clk 0:00:32.8]} 31... Re2 {[%clk
0:00:03.9]} 32. Qd8+ {[%clk 0:00:32.8]} 32... Kg7 {[%clk 0:00:03]} 33. Qd4+
{[%clk 0:00:32.9]} 33... Kg8 {[%clk 0:00:02.9]} 34. Rc1 {[%clk 0:00:27.6]} 34...
Re8 {[%clk 0:00:01.5]} 35. Qxa7 {[%clk 0:00:26]} 35... Qb3 {[%clk 0:00:01.3]}
36. Qd4 {[%clk 0:00:24.4]} 1-0

[Event "Early-Titled-Tuesday-Blitz-January-30-2024"]
[Site "Chess.com"]
[Date "2024.01.30"]
[Round "9"]
[White "Djager97"]
[Black "Korchmar_Vasiliy"]
[Result "0-1"]
[WhiteElo "2562"]
[BlackElo "2715"]
[TimeControl "180+1"]
[EndTime "9:48:33 PST"]
[Termination "Korchmar_Vasiliy won on time"]

1. e4 {[%clk 0:03:00.9]} 1... c5 {[%clk 0:03:00.2]} 2. Nf3 {[%clk 0:03:00.2]}
2... a6 {[%clk 0:03:00.7]} 3. Nc3 {[%clk 0:02:57.1]} 3... b5 {[%clk 0:02:58.3]}
4. d4 {[%clk 0:02:55]} 4... b4 {[%clk 0:02:58.4]} 5. Na4 {[%clk 0:02:52.2]} 5...
cxd4 {[%clk 0:02:58.7]} 6. Nxd4 {[%clk 0:02:52.6]} 6... Bb7 {[%clk 0:02:57.3]}
7. Nc5 {[%clk 0:02:31.6]} 7... Bc6 {[%clk 0:02:54.3]} 8. Bc4 {[%clk 0:02:21.6]}
8... e6 {[%clk 0:02:53.7]} 9. Nxc6 {[%clk 0:02:09.3]} 9... Nxc6 {[%clk
0:02:54.6]} 10. Nd3 {[%clk 0:02:08.6]} 10... Nf6 {[%clk 0:02:51.1]} 11. e5
{[%clk 0:02:05.3]} 11... Ne4 {[%clk 0:02:50.8]} 12. Qg4 {[%clk 0:02:00.1]} 12...
Nc5 {[%clk 0:02:44.5]} 13. Nxc5 {[%clk 0:01:53.6]} 13... Nxe5 {[%clk 0:02:44.8]}
14. Qd4 {[%clk 0:01:23.7]} 14... Nxc4 {[%clk 0:02:43.5]} 15. Qxc4 {[%clk
0:01:24.6]} 15... Rc8 {[%clk 0:02:43]} 16. Be3 {[%clk 0:01:24.8]} 16... Qc7
{[%clk 0:02:33.5]} 17. Qxa6 {[%clk 0:01:04.4]} 17... Bxc5 {[%clk 0:02:33.7]} 18.
Bxc5 {[%clk 0:00:48]} 18... Qxc5 {[%clk 0:02:34.6]} 19. O-O {[%clk 0:00:47.5]}
19... Qxc2 {[%clk 0:02:34.4]} 20. Rad1 {[%clk 0:00:32.9]} 20... O-O {[%clk
0:02:33.3]} 21. Rxd7 {[%clk 0:00:32.4]} 21... Qxb2 {[%clk 0:02:33.1]} 22. h3
{[%clk 0:00:26.6]} 22... h6 {[%clk 0:01:58.9]} 23. Rfd1 {[%clk 0:00:21.7]} 23...
Ra8 {[%clk 0:01:54.4]} 24. Ra7 {[%clk 0:00:20.3]} 24... Qc2 {[%clk 0:01:26.3]}
25. Rdd7 {[%clk 0:00:18.4]} 25... Qc1+ {[%clk 0:01:20.2]} 26. Kh2 {[%clk
0:00:17.8]} 26... Qf4+ {[%clk 0:01:20.9]} 27. Kg1 {[%clk 0:00:18.1]} 27... Rxa7
{[%clk 0:01:21.4]} 28. Qxa7 {[%clk 0:00:18.2]} 28... Rc8 {[%clk 0:01:21.7]} 29.
Rd1 {[%clk 0:00:10.7]} 29... Rc2 {[%clk 0:01:22.2]} 30. g3 {[%clk 0:00:04.9]}
30... Qf3 {[%clk 0:01:18]} 31. Re1 {[%clk 0:00:04.9]} 31... Kh7 {[%clk
0:01:15.1]} 32. Rf1 {[%clk 0:00:04.8]} 32... h5 {[%clk 0:01:08.9]} 33. Qd4
{[%clk 0:00:05.3]} 33... Rxa2 {[%clk 0:00:34.7]} 34. Qxb4 {[%clk 0:00:04.6]}
34... f5 {[%clk 0:00:35.4]} 35. Qc4 {[%clk 0:00:03.6]} 35... Re2 {[%clk
0:00:33.2]} 36. h4 {[%clk 0:00:04.1]} 36... e5 {[%clk 0:00:32.9]} 37. Qe6 {[%clk
0:00:04]} 37... e4 {[%clk 0:00:32.7]} 38. Qf7 {[%clk 0:00:03.5]} 38... e3 {[%clk
0:00:32.1]} 0-1

[Event "Early-Titled-Tuesday-Blitz-January-30-2024"]
[Site "Chess.com"]
[Date "2024.01.30"]
[Round "9"]
[White "NtcPou"]
[Black "Alenzer"]
[Result "1-0"]
[WhiteElo "2072"]
[BlackElo "2125"]
[TimeControl "180+1"]
[EndTime "9:48:36 PST"]
[Termination "NtcPou won on time"]

1. e4 {[%clk 0:02:46.9]} 1... c5 {[%clk 0:02:53.9]} 2. Nf3 {[%clk 0:02:46.5]}
2... e6 {[%clk 0:02:53.7]} 3. g3 {[%clk 0:02:45.7]} 3... Nc6 {[%clk 0:02:49.4]}
4. Bg2 {[%clk 0:02:45.3]} 4... a6 {[%clk 0:02:36.4]} 5. O-O {[%clk 0:02:43.1]}
5... h5 {[%clk 0:02:36.1]} 6. d4 {[%clk 0:02:37.2]} 6... cxd4 {[%clk 0:02:34.8]}
7. Nxd4 {[%clk 0:02:37.1]} 7... h4 {[%clk 0:02:34.4]} 8. c4 {[%clk 0:02:27.2]}
8... hxg3 {[%clk 0:02:27.9]} 9. hxg3 {[%clk 0:02:15.2]} 9... Bc5 {[%clk
0:02:03.1]} 10. Be3 {[%clk 0:01:59.5]} 10... Qb6 {[%clk 0:01:58.6]} 11. Nc2
{[%clk 0:01:21.9]} 11... Bxe3 {[%clk 0:01:09.7]} 12. Nxe3 {[%clk 0:01:21.7]}
12... Qxb2 {[%clk 0:01:09.2]} 13. Nd2 {[%clk 0:01:21.7]} 13... Qf6 {[%clk
0:01:05.5]} 14. c5 {[%clk 0:01:14.5]} 14... Qh6 {[%clk 0:00:21.4]} 15. Ng4
{[%clk 0:01:07.1]} 15... Qh5 {[%clk 0:00:18.2]} 16. Nc4 {[%clk 0:01:07.5]} 16...
Qxc5 {[%clk 0:00:16.2]} 17. Nd6+ {[%clk 0:01:05.3]} 17... Ke7 {[%clk 0:00:16.2]}
18. Nxc8+ {[%clk 0:00:32.3]} 18... Rxc8 {[%clk 0:00:15.7]} 19. Rc1 {[%clk
0:00:31.9]} 19... Qh5 {[%clk 0:00:15.6]} 20. f3 {[%clk 0:00:23.5]} 20... Nf6
{[%clk 0:00:13.8]} 21. Ne3 {[%clk 0:00:21.8]} 21... Qh2+ {[%clk 0:00:06.6]} 22.
Kf2 {[%clk 0:00:22.1]} 22... Qh5 {[%clk 0:00:05.7]} 23. Qb3 {[%clk 0:00:12]}
23... b5 {[%clk 0:00:04.9]} 24. Qa3+ {[%clk 0:00:12]} 24... b4 {[%clk
0:00:04.5]} 25. Qxa6 {[%clk 0:00:11.6]} 25... Ne5 {[%clk 0:00:04.6]} 26. Rh1
{[%clk 0:00:11.2]} 26... Qg6 {[%clk 0:00:03.2]} 27. Rxh8 {[%clk 0:00:06.6]}
27... Rxh8 {[%clk 0:00:04.1]} 28. Qb5 {[%clk 0:00:06.8]} 28... Nh5 {[%clk
0:00:01.1]} 29. Qxb4+ {[%clk 0:00:07]} 1-0

[Event "Early-Titled-Tuesday-Blitz-January-30-2024"]
[Site "Chess.com"]
[Date "2024.01.30"]
[Round "9"]
[White "Flaccidmoves"]
[Black "NowInChess"]
[Result "1-0"]
[WhiteElo "2457"]
[BlackElo "2281"]
[TimeControl "180+1"]
[EndTime "9:48:37 PST"]
[Termination "Flaccidmoves won on time"]

1. c4 {[%clk 0:03:00.2]} 1... e5 {[%clk 0:02:58.7]} 2. Nc3 {[%clk 0:02:59.7]}
2... Nc6 {[%clk 0:02:58.9]} 3. g3 {[%clk 0:02:55.8]} 3... g6 {[%clk 0:02:58.6]}
4. Bg2 {[%clk 0:02:55.9]} 4... Bg7 {[%clk 0:02:58.7]} 5. Nf3 {[%clk 0:02:55.3]}
5... d6 {[%clk 0:02:58.5]} 6. O-O {[%clk 0:02:55.5]} 6... f5 {[%clk 0:02:58.3]}
7. d3 {[%clk 0:02:48.2]} 7... Nf6 {[%clk 0:02:58.4]} 8. Bg5 {[%clk 0:02:43.9]}
8... h6 {[%clk 0:02:58.1]} 9. Bxf6 {[%clk 0:02:43.1]} 9... Qxf6 {[%clk 0:02:59]}
10. Nd5 {[%clk 0:02:42.6]} 10... Qf7 {[%clk 0:02:59.2]} 11. b4 {[%clk
0:02:38.6]} 11... O-O {[%clk 0:02:54.4]} 12. b5 {[%clk 0:02:37.7]} 12... Nd8
{[%clk 0:02:54.3]} 13. Rb1 {[%clk 0:02:35.6]} 13... Ne6 {[%clk 0:02:40.1]} 14.
a4 {[%clk 0:02:24.5]} 14... a5 {[%clk 0:02:35.2]} 15. Nd2 {[%clk 0:01:57.8]}
15... Kh7 {[%clk 0:02:24.2]} 16. Nb3 {[%clk 0:01:50.6]} 16... g5 {[%clk
0:02:22.5]} 17. Qd2 {[%clk 0:01:36.2]} 17... g4 {[%clk 0:02:15.1]} 18. Nxa5
{[%clk 0:01:30.9]} 18... b6 {[%clk 0:02:00.2]} 19. Nc6 {[%clk 0:01:22]} 19...
Rxa4 {[%clk 0:02:00.2]} 20. Ra1 {[%clk 0:01:22.6]} 20... Rxa1 {[%clk 0:01:44.7]}
21. Rxa1 {[%clk 0:01:23.5]} 21... h5 {[%clk 0:01:42.1]} 22. Ra7 {[%clk
0:01:11.2]} 22... f4 {[%clk 0:01:21.5]} 23. Be4+ {[%clk 0:01:00.8]} 23... Kh8
{[%clk 0:01:17.7]} 24. Qe1 {[%clk 0:00:51.3]} 24... fxg3 {[%clk 0:00:52.6]} 25.
hxg3 {[%clk 0:00:45.3]} 25... h4 {[%clk 0:00:26.6]} 26. gxh4 {[%clk 0:00:35.6]}
26... Bf6 {[%clk 0:00:26.1]} 27. Qd2 {[%clk 0:00:25]} 27... Bg7 {[%clk
0:00:10.2]} 28. Qe3 {[%clk 0:00:23.5]} 28... Nd4 {[%clk 0:00:06.6]} 29. Rxc7
{[%clk 0:00:16.8]} 29... Bd7 {[%clk 0:00:06.7]} 30. Nce7 {[%clk 0:00:15.3]}
30... Ra8 {[%clk 0:00:05]} 31. Rxd7 {[%clk 0:00:13.7]} 31... Ra1+ {[%clk
0:00:03]} 32. Kg2 {[%clk 0:00:14.3]} 1-0

[Event "Early-Titled-Tuesday-Blitz-January-30-2024"]
[Site "Chess.com"]
[Date "2024.01.30"]
[Round "9"]
[White "Bilan_Danila"]
[Black "DeArron_Fox"]
[Result "0-1"]
[WhiteElo "2604"]
[BlackElo "2477"]
[TimeControl "180+1"]
[EndTime "9:48:39 PST"]
[Termination "DeArron_Fox won by resignation"]

1. d4 {[%clk 0:02:57.3]} 1... d5 {[%clk 0:02:54.9]} 2. Nf3 {[%clk 0:02:57.4]}
2... Nf6 {[%clk 0:02:53.3]} 3. e3 {[%clk 0:02:57.7]} 3... c5 {[%clk 0:02:52.5]}
4. b3 {[%clk 0:02:58]} 4... Nc6 {[%clk 0:02:48.9]} 5. Bb2 {[%clk 0:02:58.3]}
5... Bg4 {[%clk 0:02:49.5]} 6. Nbd2 {[%clk 0:02:58.4]} 6... e6 {[%clk
0:02:48.5]} 7. a3 {[%clk 0:02:58.7]} 7... Bd6 {[%clk 0:02:42.1]} 8. Bd3 {[%clk
0:02:59]} 8... O-O {[%clk 0:02:40.3]} 9. O-O {[%clk 0:02:59.1]} 9... Re8 {[%clk
0:02:35.6]} 10. h3 {[%clk 0:02:55.6]} 10... Bh5 {[%clk 0:02:34.1]} 11. c4 {[%clk
0:02:49.7]} 11... cxd4 {[%clk 0:02:27.5]} 12. exd4 {[%clk 0:02:48.9]} 12... Bf4
{[%clk 0:02:04.2]} 13. Be2 {[%clk 0:02:33.7]} 13... Ne4 {[%clk 0:01:53.5]} 14.
Nxe4 {[%clk 0:01:59.4]} 14... dxe4 {[%clk 0:01:54.4]} 15. Ne5 {[%clk 0:01:59.9]}
15... Bxe2 {[%clk 0:01:06.3]} 16. Qxe2 {[%clk 0:02:00.8]} 16... Bxe5 {[%clk
0:00:29.5]} 17. dxe5 {[%clk 0:01:59.2]} 17... Qd3 {[%clk 0:00:30.4]} 18. Qxd3
{[%clk 0:01:51.9]} 18... exd3 {[%clk 0:00:31.3]} 19. Rad1 {[%clk 0:01:52]} 19...
Red8 {[%clk 0:00:31.8]} 20. Bc3 {[%clk 0:01:47.3]} 20... Nd4 {[%clk 0:00:29.8]}
21. Bxd4 {[%clk 0:01:40.7]} 21... Rxd4 {[%clk 0:00:30.7]} 22. Rd2 {[%clk
0:01:41.2]} 22... Rad8 {[%clk 0:00:30]} 23. f3 {[%clk 0:01:40.1]} 23... f6
{[%clk 0:00:27.3]} 24. exf6 {[%clk 0:01:40]} 24... gxf6 {[%clk 0:00:28.2]} 25.
Kf2 {[%clk 0:01:40.2]} 25... e5 {[%clk 0:00:16.5]} 26. Rfd1 {[%clk 0:01:38]}
26... f5 {[%clk 0:00:16.1]} 27. g4 {[%clk 0:01:20.5]} 27... f4 {[%clk
0:00:14.1]} 28. Re1 {[%clk 0:01:20.5]} 28... Re8 {[%clk 0:00:09.7]} 29. h4
{[%clk 0:01:15.3]} 29... Kf7 {[%clk 0:00:07.5]} 30. Red1 {[%clk 0:01:11.5]}
30... Red8 {[%clk 0:00:07.3]} 31. Re1 {[%clk 0:01:08.5]} 31... Kf6 {[%clk
0:00:07.5]} 32. Rc1 {[%clk 0:01:09.4]} 32... b6 {[%clk 0:00:06]} 33. b4 {[%clk
0:01:09.2]} 33... Rc8 {[%clk 0:00:03.6]} 34. Rc3 {[%clk 0:01:08.7]} 34... Rcxc4
{[%clk 0:00:02.6]} 35. Rxc4 {[%clk 0:01:06.1]} 35... Rxc4 {[%clk 0:00:03.5]} 36.
Rxd3 {[%clk 0:01:06.7]} 36... Rc2+ {[%clk 0:00:03.8]} 37. Kg1 {[%clk 0:01:06.5]}
37... e4 {[%clk 0:00:03.7]} 38. fxe4 {[%clk 0:01:03.3]} 38... Ke5 {[%clk
0:00:04.3]} 39. Rd7 {[%clk 0:01:03.7]} 39... Kxe4 {[%clk 0:00:04.1]} 40. Rxh7
{[%clk 0:01:00.5]} 40... Kf3 {[%clk 0:00:03.4]} 41. g5 {[%clk 0:00:54.5]} 41...
Kg3 {[%clk 0:00:03.8]} 42. Kf1 {[%clk 0:00:53.8]} 42... f3 {[%clk 0:00:04.3]}
43. Re7 {[%clk 0:00:47.7]} 43... Rc1+ {[%clk 0:00:04.7]} 44. Re1 {[%clk
0:00:46.6]} 44... Rxe1+ {[%clk 0:00:05.3]} 45. Kxe1 {[%clk 0:00:47.5]} 45... Kg2
{[%clk 0:00:06.1]} 46. g6 {[%clk 0:00:46]} 46... f2+ {[%clk 0:00:07]} 47. Kd2
{[%clk 0:00:46.6]} 47... f1=Q {[%clk 0:00:07.9]} 48. h5 {[%clk 0:00:47.3]} 48...
Qf4+ {[%clk 0:00:07.1]} 49. Kc3 {[%clk 0:00:47.8]} 49... Qg5 {[%clk 0:00:07]}
50. Kc4 {[%clk 0:00:48.3]} 50... Qxh5 {[%clk 0:00:07.1]} 51. b5 {[%clk
0:00:48.4]} 51... Qxg6 {[%clk 0:00:06.8]} 52. a4 {[%clk 0:00:49.3]} 0-1

[Event "Early-Titled-Tuesday-Blitz-January-30-2024"]
[Site "Chess.com"]
[Date "2024.01.30"]
[Round "9"]
[White "Onthequiet"]
[Black "DrCeltic"]
[Result "1-0"]
[WhiteElo "2423"]
[BlackElo "2526"]
[TimeControl "180+1"]
[EndTime "9:48:40 PST"]
[Termination "Onthequiet won on time"]

1. d4 {[%clk 0:03:00.9]} 1... Nf6 {[%clk 0:02:59.6]} 2. Nf3 {[%clk 0:03:00.4]}
2... d5 {[%clk 0:02:59.6]} 3. c4 {[%clk 0:02:59.9]} 3... c6 {[%clk 0:03:00]} 4.
e3 {[%clk 0:02:59.5]} 4... Bf5 {[%clk 0:02:59.7]} 5. Nc3 {[%clk 0:02:58.7]} 5...
e6 {[%clk 0:02:59.9]} 6. Qb3 {[%clk 0:02:58.3]} 6... Qb6 {[%clk 0:02:54.6]} 7.
c5 {[%clk 0:02:57.8]} 7... Qc7 {[%clk 0:02:55.1]} 8. Bd2 {[%clk 0:02:56.5]} 8...
Nbd7 {[%clk 0:02:54.7]} 9. Be2 {[%clk 0:02:54.9]} 9... b6 {[%clk 0:02:44.7]} 10.
cxb6 {[%clk 0:02:52.7]} 10... axb6 {[%clk 0:02:45.6]} 11. Rc1 {[%clk 0:02:52.1]}
11... Be7 {[%clk 0:02:40.3]} 12. h3 {[%clk 0:02:50.1]} 12... h6 {[%clk
0:02:39.4]} 13. O-O {[%clk 0:02:47.4]} 13... O-O {[%clk 0:02:39.5]} 14. a3
{[%clk 0:02:43.4]} 14... Rab8 {[%clk 0:02:26.6]} 15. Qd1 {[%clk 0:02:28.6]}
15... Rfe8 {[%clk 0:02:19.9]} 16. b4 {[%clk 0:02:11.6]} 16... c5 {[%clk
0:02:12.8]} 17. Nb5 {[%clk 0:02:07.1]} 17... Qb7 {[%clk 0:02:09.9]} 18. Bc3
{[%clk 0:01:53.5]} 18... c4 {[%clk 0:02:08.2]} 19. Ne5 {[%clk 0:01:46.7]} 19...
Ne4 {[%clk 0:02:04.7]} 20. Ba1 {[%clk 0:01:41.6]} 20... Ra8 {[%clk 0:01:52.4]}
21. g4 {[%clk 0:01:03.7]} 21... Bh7 {[%clk 0:01:43.3]} 22. Kg2 {[%clk 0:01:01]}
22... Nxe5 {[%clk 0:01:34.2]} 23. dxe5 {[%clk 0:00:59.9]} 23... Qd7 {[%clk
0:01:33.6]} 24. Bxc4 {[%clk 0:00:52.2]} 24... Rec8 {[%clk 0:01:21.1]} 25. Be2
{[%clk 0:00:51.2]} 25... h5 {[%clk 0:01:11]} 26. Rxc8+ {[%clk 0:00:49.4]} 26...
Rxc8 {[%clk 0:01:10.9]} 27. Bd4 {[%clk 0:00:46.4]} 27... Bd8 {[%clk 0:00:34.3]}
28. f3 {[%clk 0:00:42.5]} 28... hxg4 {[%clk 0:00:26.3]} 29. fxe4 {[%clk
0:00:38.1]} 29... Bxe4+ {[%clk 0:00:26.4]} 30. Kh2 {[%clk 0:00:38.1]} 30... gxh3
{[%clk 0:00:20.5]} 31. Nd6 {[%clk 0:00:37.2]} 31... Bg2 {[%clk 0:00:12.9]} 32.
Rf2 {[%clk 0:00:36.5]} 32... f5 {[%clk 0:00:03]} 33. Nxc8 {[%clk 0:00:33.4]}
33... Bh4 {[%clk 0:00:02.1]} 34. Rxg2 {[%clk 0:00:30.8]} 34... hxg2 {[%clk
0:00:03]} 35. Kxg2 {[%clk 0:00:31.2]} 35... Qxc8 {[%clk 0:00:02.3]} 36. Kh3
{[%clk 0:00:25.4]} 1-0

[Event "Early-Titled-Tuesday-Blitz-January-30-2024"]
[Site "Chess.com"]
[Date "2024.01.30"]
[Round "9"]
[White "ChessSkool"]
[Black "Sethu0025"]
[Result "0-1"]
[WhiteElo "2702"]
[BlackElo "2869"]
[TimeControl "180+1"]
[EndTime "9:48:41 PST"]
[Termination "Sethu0025 won on time"]

1. d4 {[%clk 0:02:13.1]} 1... Nf6 {[%clk 0:02:59.1]} 2. Nf3 {[%clk 0:02:13.6]}
2... d5 {[%clk 0:02:58.8]} 3. c3 {[%clk 0:02:14.2]} 3... e6 {[%clk 0:02:58]} 4.
Bf4 {[%clk 0:02:14]} 4... c5 {[%clk 0:02:58.2]} 5. e3 {[%clk 0:02:14.6]} 5...
Nc6 {[%clk 0:02:58.2]} 6. Nbd2 {[%clk 0:02:15.3]} 6... cxd4 {[%clk 0:02:58]} 7.
exd4 {[%clk 0:02:15.6]} 7... Nh5 {[%clk 0:02:58]} 8. Be3 {[%clk 0:02:16.1]} 8...
Bd6 {[%clk 0:02:56.6]} 9. Bb5 {[%clk 0:02:16.7]} 9... Qb6 {[%clk 0:02:53.9]} 10.
c4 {[%clk 0:01:53.8]} 10... dxc4 {[%clk 0:02:49.8]} 11. a4 {[%clk 0:01:48.1]}
11... Qc7 {[%clk 0:02:34.8]} 12. Nxc4 {[%clk 0:01:42.9]} 12... Bb4+ {[%clk
0:02:32]} 13. Bd2 {[%clk 0:01:30.4]} 13... Bxd2+ {[%clk 0:02:24.7]} 14. Nfxd2
{[%clk 0:01:14.1]} 14... Nf4 {[%clk 0:02:23.4]} 15. Qg4 {[%clk 0:01:00.8]} 15...
Nd3+ {[%clk 0:02:08.9]} 16. Ke2 {[%clk 0:00:51]} 16... Nf4+ {[%clk 0:02:08.7]}
17. Kf3 {[%clk 0:00:51]} 17... Ng6 {[%clk 0:01:57.3]} 18. Qg3 {[%clk 0:00:45.2]}
18... Qd7 {[%clk 0:01:44]} 19. Qd6 {[%clk 0:00:40]} 19... Nh4+ {[%clk
0:01:11.7]} 20. Ke4 {[%clk 0:00:40]} 20... Nf5 {[%clk 0:01:01.5]} 21. Qxd7+
{[%clk 0:00:39.9]} 21... Bxd7 {[%clk 0:01:01.6]} 22. Nf3 {[%clk 0:00:18.4]}
22... O-O {[%clk 0:00:58.6]} 23. g4 {[%clk 0:00:13.4]} 23... Nfe7 {[%clk
0:00:58.4]} 24. Nfe5 {[%clk 0:00:13.3]} 24... Rfd8 {[%clk 0:00:49.6]} 25. Nxd7
{[%clk 0:00:10.8]} 25... Rxd7 {[%clk 0:00:49.7]} 26. Rhd1 {[%clk 0:00:09.1]}
26... Rad8 {[%clk 0:00:49.5]} 27. Ke3 {[%clk 0:00:03.4]} 27... Rxd4 {[%clk
0:00:48.8]} 28. Rxd4 {[%clk 0:00:03.3]} 28... Rxd4 {[%clk 0:00:49.7]} 29. Rc1
{[%clk 0:00:02.6]} 29... f6 {[%clk 0:00:32.8]} 30. f3 {[%clk 0:00:02.8]} 30...
Nd5+ {[%clk 0:00:31]} 31. Ke2 {[%clk 0:00:02.1]} 31... Nf4+ {[%clk 0:00:30.2]}
32. Ke3 {[%clk 0:00:01.9]} 32... Nd5+ {[%clk 0:00:25.6]} 33. Ke2 {[%clk
0:00:02.1]} 33... Ncb4 {[%clk 0:00:25.9]} 34. Ne3 {[%clk 0:00:01.4]} 34... Nf4+
{[%clk 0:00:20.6]} 35. Kf2 {[%clk 0:00:01.3]} 35... Nbd3+ {[%clk 0:00:20]} 0-1

[Event "Early-Titled-Tuesday-Blitz-January-30-2024"]
[Site "Chess.com"]
[Date "2024.01.30"]
[Round "9"]
[White "Jumbo"]
[Black "HamedWafa4"]
[Result "1-0"]
[WhiteElo "2942"]
[BlackElo "2814"]
[TimeControl "180+1"]
[EndTime "9:48:42 PST"]
[Termination "Jumbo won by resignation"]

1. d4 {[%clk 0:02:57.5]} 1... Nf6 {[%clk 0:02:59.3]} 2. Nf3 {[%clk 0:02:57.9]}
2... e6 {[%clk 0:02:58.3]} 3. c4 {[%clk 0:02:57.4]} 3... Bb4+ {[%clk 0:02:57.8]}
4. Bd2 {[%clk 0:02:55.8]} 4... Bxd2+ {[%clk 0:02:57.8]} 5. Qxd2 {[%clk
0:02:55.4]} 5... O-O {[%clk 0:02:58.1]} 6. Nc3 {[%clk 0:02:55.8]} 6... d6 {[%clk
0:02:57.5]} 7. e4 {[%clk 0:02:32.4]} 7... Nc6 {[%clk 0:02:55.7]} 8. Be2 {[%clk
0:02:29.3]} 8... e5 {[%clk 0:02:55.5]} 9. d5 {[%clk 0:02:29.3]} 9... Ne7 {[%clk
0:02:55.3]} 10. O-O {[%clk 0:02:29.7]} 10... Ng6 {[%clk 0:02:55.5]} 11. g3
{[%clk 0:02:28.5]} 11... a5 {[%clk 0:02:53]} 12. Kg2 {[%clk 0:02:23.9]} 12...
Nd7 {[%clk 0:02:48.6]} 13. Ne1 {[%clk 0:02:14.8]} 13... Nc5 {[%clk 0:02:46.5]}
14. Nd3 {[%clk 0:02:15.4]} 14... b6 {[%clk 0:02:43.4]} 15. h4 {[%clk 0:02:00.5]}
15... f5 {[%clk 0:02:40.8]} 16. Nxc5 {[%clk 0:01:56.3]} 16... bxc5 {[%clk
0:02:40.2]} 17. exf5 {[%clk 0:01:55.4]} 17... Bxf5 {[%clk 0:02:38.1]} 18. h5
{[%clk 0:01:51.7]} 18... Ne7 {[%clk 0:02:37.3]} 19. h6 {[%clk 0:01:50.3]} 19...
g6 {[%clk 0:02:33]} 20. f4 {[%clk 0:01:50.1]} 20... Qd7 {[%clk 0:02:28.6]} 21.
Kh2 {[%clk 0:01:39.2]} 21... exf4 {[%clk 0:02:16.2]} 22. Rxf4 {[%clk 0:01:40.1]}
22... Bh3 {[%clk 0:01:51.8]} 23. g4 {[%clk 0:01:35.3]} 23... Rxf4 {[%clk
0:01:39.8]} 24. Qxf4 {[%clk 0:01:36.2]} 24... Rf8 {[%clk 0:01:38.6]} 25. Qg3
{[%clk 0:01:36.3]} 25... g5 {[%clk 0:01:37.3]} 26. Qxh3 {[%clk 0:01:21.9]} 26...
Ng6 {[%clk 0:01:37.6]} 27. Rf1 {[%clk 0:01:09.3]} 27... Nf4 {[%clk 0:01:29.7]}
28. Qe3 {[%clk 0:01:08.1]} 28... Rf6 {[%clk 0:01:27.4]} 29. Kg1 {[%clk
0:00:30.4]} 29... Rxh6 {[%clk 0:01:26.8]} 30. Rxf4 {[%clk 0:00:30.3]} 30... gxf4
{[%clk 0:01:26.9]} 31. Qxf4 {[%clk 0:00:31.2]} 31... Rg6 {[%clk 0:01:19.3]} 32.
Ne4 {[%clk 0:00:28.9]} 32... Qe7 {[%clk 0:01:17.6]} 33. Kf2 {[%clk 0:00:25.2]}
33... Qh4+ {[%clk 0:01:14.4]} 34. Ke3 {[%clk 0:00:25.5]} 34... Qe1 {[%clk
0:01:09]} 35. g5 {[%clk 0:00:19]} 35... Qc1+ {[%clk 0:01:07]} 36. Kf3 {[%clk
0:00:19.4]} 36... Qh1+ {[%clk 0:01:05.1]} 37. Kf2 {[%clk 0:00:17.4]} 37... Kg7
{[%clk 0:00:50.7]} 38. Bg4 {[%clk 0:00:15.7]} 38... Qh4+ {[%clk 0:00:48.1]} 39.
Kg2 {[%clk 0:00:15.6]} 39... h5 {[%clk 0:00:27.1]} 40. gxh6+ {[%clk 0:00:15.2]}
40... Qxh6 {[%clk 0:00:27.8]} 41. Qxh6+ {[%clk 0:00:14.5]} 41... Kxh6 {[%clk
0:00:27.4]} 42. Kf3 {[%clk 0:00:15.1]} 42... Kg7 {[%clk 0:00:27.4]} 43. a4
{[%clk 0:00:14.5]} 43... Kf7 {[%clk 0:00:26.8]} 44. Bh5 {[%clk 0:00:13.2]} 1-0